{"text_format":"1","workbook":"xlsx","n_sheets":1,"sheets":["試験依頼"],"not_rendered":{"charts":0,"images":25,"macros":1,"external_links":0,"defined_names":1,"comments":0,"pivot_tables":0},"unopened":[],"bounds":{"document_bytes":16777216,"sheet_cells":100000,"rows_first":2000,"rows_last":500,"rows_between":2000,"halvings":0,"cell_chars":16384,"cell_head_chars":4096},"cells_cut":0,"cells_raw":0,"read":"whole","date_system":"1900"}

{"sheet":"試験依頼","index":0,"n_rows":55,"n_cols":24,"rows_kept":55,"cut":false,"hidden":false,"merged":[[54,0,54,1],[54,2,54,17],[22,0,23,1],[50,12,50,13],[50,14,50,15],[51,0,51,1],[51,2,51,17],[52,0,53,1],[52,2,52,17],[53,2,53,17],[50,0,50,1],[50,2,50,3],[50,4,50,5],[50,6,50,7],[50,8,50,9],[50,10,50,11],[48,14,48,15],[49,0,49,1],[49,2,49,3],[49,4,49,5],[49,6,49,7],[49,8,49,9],[49,10,49,11],[49,12,49,13],[49,14,49,15],[47,12,47,13],[47,14,47,15],[47,16,50,17],[48,0,48,1],[48,2,48,3],[48,4,48,5],[48,6,48,7],[48,8,48,9],[48,10,48,11],[48,12,48,13],[47,0,47,1],[47,2,47,3],[47,4,47,5],[47,6,47,7],[47,8,47,9],[47,10,47,11],[45,0,45,17],[46,0,46,1],[46,2,46,3],[46,4,46,5],[46,6,46,7],[46,8,46,9],[46,10,46,11],[46,12,46,13],[46,14,46,15],[46,16,46,17],[42,0,42,2],[42,3,42,4],[42,10,42,13],[42,14,42,16],[43,0,44,2],[43,3,44,9],[43,10,43,11],[43,12,43,17],[44,10,44,11],[44,12,44,17],[40,0,40,2],[40,3,40,17],[41,0,41,2],[41,3,41,9],[41,10,41,11],[41,12,41,17],[34,10,34,11],[34,15,34,17],[35,0,35,2],[35,3,35,17],[36,0,38,2],[36,3,36,17],[37,3,37,17],[38,3,38,17],[33,0,34,2],[33,3,34,5],[33,6,34,6],[33,7,34,7],[33,8,33,9],[33,10,33,11],[33,15,33,17],[34,8,34,9],[39,0,39,2],[29,0,31,2],[29,3,29,17],[29,19,30,19],[30,3,30,17],[31,3,31,17],[32,0,32,2],[32,3,32,5],[32,6,32,7],[32,8,32,9],[32,10,32,11],[32,12,32,14],[32,15,32,17],[24,0,25,2],[24,3,25,17],[24,19,25,19],[26,0,26,2],[26,3,26,17],[27,0,28,2],[27,3,28,17],[27,19,28,19],[21,0,21,2],[21,3,21,13],[21,14,21,17],[22,2,23,2],[22,3,23,9],[22,10,23,10],[22,11,23,17],[18,0,19,1],[18,2,19,2],[18,3,19,9],[18,10,19,10],[18,12,18,17],[19,11,19,17],[12,12,12,17],[13,0,14,2],[13,3,14,3],[16,0,16,2],[16,3,16,4],[16,5,16,12],[16,13,16,17],[15,0,15,2],[15,3,15,4],[15,5,15,12],[15,13,15,17],[12,9,12,11],[9,16,10,17],[13,4,14,11],[13,12,14,12],[13,13,14,17],[9,14,10,15],[9,12,10,13],[0,8,2,9],[0,10,2,15],[0,16,2,17],[0,0,10,4],[5,8,5,17],[6,9,6,17],[8,12,8,13],[8,14,8,15],[8,16,8,17]]}
[null,null,null,null,null,null,null,null,"受付番号",null,null,null,null,null,null,null,null,null,null,null,"RQD\n\n\n\n\n\naaaaaaaaaaaaaaaaaaaaaaaa\n\n\n\n\n\n\naaaaaaaaaaaaaaaaaaaaaaaaaaaaaaa\n\n\n\n2\n\n\n\n\n\n\n\n\n\n\n28\n\n\n\n\n\n\n\n\n\n\n\n\n\n\n\n"]
[]
[]
[null,null,null,null,null,null,null,null,null,null,null,null,null,null,null,null,null,null,null,"※注意事項※"]
[null,null,null,null,null,null,null,null,null,null,null,null,null,null,null,null,null,null,null,"QRコードに変換する情報はＵ列に保存されます。"]
[null,null,null,null,null,null,null,null,"様式 011-1-2 コンクリート以外強度試験依頼書",null,null,null,null,null,null,null,null,null,null,"セルの行や列を増やすと、読み込みエラーが",{"$f":"IF(M13=\"\",\"\",M13)","v":""},"メールアドレス"]
[null,null,null,null,null,null,null,null,null,"石川県生コンクリート工業組合共同試験場行",null,null,null,null,null,null,null,null,null,"発生しますので、行わないで下さい。"]
[]
[null,null,null,null,null,null,null,null,null,null,null,null,null,null,"技術管理者",null,"受付者",null,null,null,{"$f":"IF(E14=\"\",\"\",E14)","v":""},"顧客名"]
[null,null,null,null,null,null,null,null,null,null,null,null,null,null,null,null,null,null,null,"試験依頼書の印刷はボタンを使用して下さい"]
[null,null,null,null,null,null,null,null,null,null,null,null,null,null,null,null,null,null,null,"印刷時にＱＲコードが作成されます"]
[null,null,null,null,null,null,null,null,null,null,null,null,null,null,null,null,null,null,null,null,{"$f":"IF(L23=\"\",\"\",L23)","v":""},"報告書住所"]
["【顧客情報欄】",null,null,null,null,null,null,null,null,"メールアドレス",null,null,null,null,null,null,null,null,null,"メールアドレス：依頼書返送及び報告書速報に使用します",{"$f":"IF(D23=\"\",\"\",D23)","v":""},"報宛"]
["顧客又は代理者",null,null,"会社名",null,null,null,null,null,null,null,null,"担当者",null,null,null,null,null,null,"顧客　＝報告書宛名に記載する方を指します"]
[null,null,null,null,null,null,null,null,null,null,null,null,null,null,null,null,null,null,null,"代理者＝顧客(報告書宛名)から試験を代理で依頼する方を指します",{"$f":"IF(L20=\"\",\"\",L20)","v":""},"請求先住所"]
[null,null,null,"郵便番号",null,"住所",null,null,null,null,null,null,null,"連絡先",null,null,null,null,null,null,{"$f":"IF(D19=\"\",\"\",D19)","v":""},"請求先"]
[null,null,null,null,null,null,null,null,null,null,null,null,null,null,null,null,null,null,null,null,null,"報告書送付先"]
["【試験の請求先】",null,null,null,null,null,null,null,null,null,null,null,null,null,null,null,null,null,null,null,null,null,null,0]
["請求先",null,"会社名",null,null,null,null,null,null,null,"住所","〒",null,null,null,null,null,null,null,"試験料金の請求先を明記して下さい"]
[null,null,null,null,null,null,null,null,null,null,null,null,null,null,null,null,null,null,null,"依頼試験名称を☑で選択して下さい。該当する名称が無い場合は、一番",{"$f":"IF(O43=\"\",\"\",O43)","v":2},"部数"]
["【試験報告書記載欄】",null,null,null,null,null,null,null,null,null,null,null,null,null,null,null,null,null,null,"右の□に☑を入れて、名称を入れて下さい。"]
["依頼試験名称",null,null,null,null,null,null,null,null,null,null,null,null,null,null,null,null,null,null,"空白の場合は圧縮強度試験の標記で報告書を作成します。"]
["報告書宛名",null,"会社名",null,null,null,null,null,null,null,"住所",null,null,null,null,null,null,null,null,"報告書の表紙(表面)に記載する顧客の名前及び住所を明記して下さい",{"$f":"IF(D25=\"\",\"\",D25)","v":""},"施工者"]
[null,null,null,null,null,null,null,null,null,null,null,null,null,null,null,null,null,null,null,null,{"$f":"IF(D27=\"\",\"\",D27)","v":""},"工事名"]
["施工者",null,null,null,null,null,null,null,null,null,null,null,null,null,null,null,null,null,null,"施工者名を明記して下さい",{"$f":"IF(D28=\"\",\"\",D28)","v":""},"打設箇所"]
[null,null,null,null,null,null,null,null,null,null,null,null,null,null,null,null,null,null,null,null,{"$f":"IF(D30=\"\",\"\",D30)","v":""},"設計条件1"]
["工事名",null,null,null,null,null,null,null,null,null,null,null,null,null,null,null,null,null,null,"工事名を明記して下さい",{"$f":"IF(D31=\"\",\"\",D31)","v":""},"設計条件2"]
["打設箇所",null,null,null,null,null,null,null,null,null,null,null,null,null,null,null,null,null,null,"打設箇所を明記して下さい",{"$f":"IF(D32=\"\",\"\",D32)","v":""},"設計条件３"]
[null,null,null,null,null,null,null,null,null,null,null,null,null,null,null,null,null,null,null,null,{"$f":"IF(A34=\"\",\"\",A34)","v":""},"供試体作製日"]
["設計条件",null,null,null,null,null,null,null,null,null,null,null,null,null,null,null,null,null,null,"報告書に設計条件を明記する場合は記入して下さい",{"$f":"IF(D34=\"\",\"\",D34)","v":""},"試験予定日"]
[null,null,null,null,null,null,null,null,null,null,null,null,null,null,null,null,null,null,null,null,{"$f":"IF(G34=\"\",\"\",G34)","v":28},"材齢"]
[null,null,null,null,null,null,null,null,null,null,null,null,null,null,null,null,null,null,null,"■ボタンは、試験予定日又は材齢の入力ボタンです",{"$f":"IF(I34=\"\",\"\",I34)","v":""},"養生①"]
["供試体作製日",null,null,"強度試験予定日",null,null,"材齢",null,"養生",null,"本数",null,"供試体識別番号",null,null,"摘要",null,null,null,"作製日と材齢を入力しボタンを押すと、試験日が表示されます",{"$f":"IF(I35=\"\",\"\",I35)","v":""},"養生②"]
[null,null,null,null,null,null,28,"日",null,null,null,null,null,null,null,null,null,null,null,null,{"$f":"IF(K34=\"\",\"\",K34)","v":""},"試験本数１"]
[null,null,null,null,null,null,null,null,null,null,null,null,null,null,null,null,null,null,null,"養生方法、本数は▼タブで選択できます",{"$f":"IF(K35=\"\",\"\",K35)","v":""},"試験本数２"]
["形状寸法（公称）",null,null,null,null,null,null,null,null,null,null,null,null,null,null,null,null,null,null,"摘要欄、代表的な項目は▼タブで選択できます",{"$f":"IF(M34=\"\",\"\",M34)","v":""},"識別No.1"]
["備考",null,null,null,null,null,null,null,null,null,null,null,null,null,null,null,null,null,null,null,{"$f":"IF(N34=\"\",\"\",N34)","v":""},"識別No.2"]
[null,null,null,null,null,null,null,null,null,null,null,null,null,null,null,null,null,null,null,null,{"$f":"IF(O34=\"\",\"\",O34)","v":""},"識別No.3"]
[null,null,null,null,null,null,null,null,null,null,null,null,null,null,null,null,null,null,null,null,{"$f":"IF(M35=\"\",\"\",M35)","v":""},"識別No.4","標準"]
["【その他】",null,null,null,null,null,null,null,null,null,null,null,null,null,null,null,null,null,null,"発注先を選択して下さい。左記に該当する項目がない場合は、",{"$f":"IF(N35=\"\",\"\",N35)","v":""},"識別No.5","現場水中"]
["発注先",null,null,null,null,null,null,null,null,null,null,null,null,null,null,null,null,null,null,"その他に☑をお願いします",{"$f":"IF(O35=\"\",\"\",O35)","v":""},"識別No.6","現場気中"]
["報告書送付先",null,null,null,null,null,null,null,null,null,"受領方法",null,null,null,null,null,null,null,null,"報告書の送付先を☑をお願いします",{"$f":"IF(P34=\"\",\"\",P34)","v":""},"摘要１","現場空中"]
["試料の処分",null,null,null,null,null,null,null,null,null,"試験報告書部数",null,null,null,2,null,null,"部",null,"試験報告書の部数を明記して下さい",{"$f":"IF(P35=\"\",\"\",P35)","v":""},"摘要２","現場封かん"]
["連絡事項",null,null,null,null,null,null,null,null,null,"搬入者",null,null,null,null,null,null,null,null,"供試体を搬入される方の氏名及び連絡先の明記をお願いします"]
[null,null,null,null,null,null,null,null,null,null,"連絡先",null,null,null,null,null,null,null,null,"報告書・請求先に記載する以外の連絡事項を入力して下さい",{"$f":"IF(D37=\"\",\"\",D37)","v":""},"備考1"]
["【試験場記入欄】　以下の欄は記入しないで下さい",null,null,null,null,null,null,null,null,null,null,null,null,null,null,null,null,null,null,null,{"$f":"IF(D38=\"\",\"\",D38)","v":""},"備考2"]
["項目",null,"圧縮強度",null,"曲げ・圧縮",null,"研磨",null,"カッティング",null,null,null,"事務手数料",null,"副本代",null,"合計(税別)",null,null,null,{"$f":"IF(D39=\"\",\"\",D39)","v":""},"備考3"]
["方法",null,"JIS A 1108:2018",null,"JIS R 5201:2015",null,"JIS A 1132:2020",null,"---",null,null,null,"1式",null,"1部追加"]
["試験単価",null,"￥3,300/本",null,"￥4,500/本",null,"￥1,000 /面",null,"￥1,000 /片",null,null,null,200,null,250]
["数量",null,null,null,null,null,null,null,null,null,null,null,{"$f":"IF(O43=\"\",\"\",1)","v":1},null,{"$f":"IF(O43=0,\"\",IF(O43=1,\"\",O43-2))","v":0}]
["小計",null,null,null,null,null,null,null,null,null,null,null,{"$f":"IF(M50=\"\",\"\",M50*M49)","v":200},null,{"$f":"IF(O50=\"\",\"\",O49*O50)","v":0}]
["請求方式",null," □ 現金（領収№　　　　　）　□ 請求書発行（　　月　　日）　□ 搬入保証"]
["備考",null,"　"]
[null,null,"     設計1週　　　　Ｎ/mm2　　設計4週　　　　N/mm2　　設計強度　　　　N/mm2"]
["試料の状態",null," □ 良好　□異常　※異常は、結果に影響を及ぼす状態を指す"]